[Event "Titled Tuesday Blitz March 07 Early 2023"]
[White "Pinheiro, Iung Alicio de O."]
[Black "Bas Mas, Jose Joaquin"]
[WhiteFideId "2104350"]
[BlackFideId "22219064"]
[WhiteElo "2283"]
[BlackElo "2233"]
[Result "1-0"]
[Round "06"]
[TimeControl "180+2"]
[Date "2023.03.07"]
[WhiteClock "0:00:46"]
[BlackClock "0:00:40"]

1. e4 {[%clk 0:03:00]}  e6 {[%clk 0:03:00]} 2. d4 {[%clk 0:03:00]}  d5 {[%clk 0:03:00]} 3. e5 {[%clk 0:03:00]}  c5 {[%clk 0:03:00]} 4. c3 {[%clk 0:03:00]}  Nc6 {[%clk 0:03:00]} 5. Nf3 {[%clk 0:03:00]}  Qb6 {[%clk 0:03:00]} 6. Bd3 {[%clk 0:02:59]}  Bd7 {[%clk 0:02:58]} 7. O-O {[%clk 0:02:59]}  cxd4 {[%clk 0:02:59]} 8. Re1 {[%clk 0:02:58]}  Nge7 {[%clk 0:02:59]} 9. h4 {[%clk 0:02:58]}  h6 {[%clk 0:02:59]} 10. h5 {[%clk 0:02:57]}  Rc8 {[%clk 0:02:58]} 11. a3 {[%clk 0:02:55]}  a6 {[%clk 0:02:49]} 12. b4 {[%clk 0:02:54]}  dxc3 {[%clk 0:02:48]} 13. Nxc3 {[%clk 0:02:54]}  Nxb4 {[%clk 0:02:48]} 14. Na4 {[%clk 0:02:55]}  Bxa4 {[%clk 0:02:39]} 15. Qxa4+ {[%clk 0:02:52]}  Nbc6 {[%clk 0:02:40]} 16. Rb1 {[%clk 0:02:46]}  Qc7 {[%clk 0:02:37]} 17. Bd2 {[%clk 0:02:34]}  Nf5 {[%clk 0:02:21]} 18. Bxf5 {[%clk 0:02:03]}  exf5 {[%clk 0:02:20]} 19. Qf4 {[%clk 0:01:58]}  Be7 {[%clk 0:02:01]} 20. Qxf5 {[%clk 0:01:52]}  O-O {[%clk 0:02:01]} 21. Rb3 {[%clk 0:01:34]}  Rcd8 {[%clk 0:01:26]} 22. Reb1 {[%clk 0:01:27]}  Na5 {[%clk 0:01:19]} 23. Bxa5 {[%clk 0:01:20]}  Qxa5 {[%clk 0:01:18]} 24. Rxb7 {[%clk 0:01:21]}  Qxa3 {[%clk 0:01:12]} 25. e6 {[%clk 0:01:21]}  Qd6 {[%clk 0:01:06]} 26. R1b6 {[%clk 0:01:02]}  fxe6 {[%clk 0:01:02]} 27. Qg4 {[%clk 0:01:01]}  Rf4 {[%clk 0:00:43]} 28. Rxd6 {[%clk 0:00:45]}  Rxg4 {[%clk 0:00:42]} 29. Rxd8+ {[%clk 0:00:46]}  Bxd8 {[%clk 0:00:43]} 30. Rb8 {[%clk 0:00:47]}  Kf7 {[%clk 0:00:40]} 31. Ne5+ {[%clk 0:00:46]} 1-0


[Site "https://www.chess.com"]

[Event "Titled Tuesday Blitz March 07 Early 2023"]
[White "Risteski, Emil"]
[Black "Andrews, Todd"]
[WhiteFideId "15005267"]
[BlackFideId "2012456"]
[WhiteElo "2251"]
[BlackElo "2395"]
[Result "1-0"]
[Round "06"]
[TimeControl "180+2"]
[Date "2023.03.07"]
[WhiteClock "0:00:24"]
[BlackClock "0:00:17"]

1. c4 {[%clk 0:03:00]}  Nf6 {[%clk 0:02:42]} 2. Nc3 {[%clk 0:02:59]}  g6 {[%clk 0:02:41]} 3. e4 {[%clk 0:02:57]}  Bg7 {[%clk 0:02:42]} 4. d4 {[%clk 0:02:57]}  d6 {[%clk 0:02:42]} 5. Be2 {[%clk 0:02:56]}  O-O {[%clk 0:02:42]} 6. Be3 {[%clk 0:02:52]}  e5 {[%clk 0:02:41]} 7. d5 {[%clk 0:02:52]}  a5 {[%clk 0:02:39]} 8. h4 {[%clk 0:02:53]}  Na6 {[%clk 0:02:37]} 9. h5 {[%clk 0:02:53]}  Nc5 {[%clk 0:02:34]} 10. h6 {[%clk 0:02:52]}  Bh8 {[%clk 0:02:34]} 11. f3 {[%clk 0:02:47]}  c6 {[%clk 0:02:21]} 12. Nh3 {[%clk 0:02:46]}  cxd5 {[%clk 0:02:20]} 13. cxd5 {[%clk 0:02:45]}  Nfd7 {[%clk 0:02:17]} 14. Qd2 {[%clk 0:02:30]}  a4 {[%clk 0:02:09]} 15. g4 {[%clk 0:02:27]}  Qa5 {[%clk 0:02:02]} 16. Nb5 {[%clk 0:02:17]}  Qb6 {[%clk 0:01:38]} 17. Nf2 {[%clk 0:02:12]}  Bf6 {[%clk 0:01:27]} 18. Nd3 {[%clk 0:02:06]}  Qxb5 {[%clk 0:01:19]} 19. Nxc5 {[%clk 0:02:05]}  Qa5 {[%clk 0:01:12]} 20. Qxa5 {[%clk 0:01:57]}  Rxa5 {[%clk 0:01:11]} 21. Nxd7 {[%clk 0:01:40]}  Bxd7 {[%clk 0:01:12]} 22. Bb6 {[%clk 0:01:34]}  Raa8 {[%clk 0:01:07]} 23. Kd2 {[%clk 0:01:34]}  Bg5+ {[%clk 0:01:02]} 24. Be3 {[%clk 0:01:33]}  Bxe3+ {[%clk 0:00:58]} 25. Kxe3 {[%clk 0:01:34]}  Rfc8 {[%clk 0:00:58]} 26. Rac1 {[%clk 0:01:29]}  f6 {[%clk 0:00:55]} 27. Kd2 {[%clk 0:01:15]}  Kf7 {[%clk 0:00:55]} 28. Rc3 {[%clk 0:00:45]}  g5 {[%clk 0:00:44]} 29. Rhc1 {[%clk 0:00:42]}  Kg6 {[%clk 0:00:40]} 30. Rc7 {[%clk 0:00:41]}  Rxc7 {[%clk 0:00:32]} 31. Rxc7 {[%clk 0:00:42]}  Bc8 {[%clk 0:00:27]} 32. Rg7+ {[%clk 0:00:26]}  Kxh6 {[%clk 0:00:25]} 33. Rg8 {[%clk 0:00:26]}  b6 {[%clk 0:00:20]} 34. Bb5 {[%clk 0:00:25]}  Bb7 {[%clk 0:00:20]} 35. Rxa8 {[%clk 0:00:24]}  Bxa8 {[%clk 0:00:21]} 36. Bc6 {[%clk 0:00:25]}  Kg6 {[%clk 0:00:16]} 37. Bxa8 {[%clk 0:00:24]}  h5 {[%clk 0:00:17]} 38. gxh5+ {[%clk 0:00:24]}  Kxh5 {[%clk 0:00:18]} 39. Bc6 {[%clk 0:00:22]}  a3 {[%clk 0:00:18]} 40. bxa3 {[%clk 0:00:22]}  Kh4 {[%clk 0:00:19]} 41. Bd7 {[%clk 0:00:21]}  Kg3 {[%clk 0:00:19]} 42. Bg4 {[%clk 0:00:21]}  Kf2 {[%clk 0:00:20]} 43. Kc3 {[%clk 0:00:21]}  Ke3 {[%clk 0:00:20]} 44. Kb4 {[%clk 0:00:22]}  Kd4 {[%clk 0:00:19]} 45. Kb5 {[%clk 0:00:22]}  Kc3 {[%clk 0:00:17]} 46. Kxb6 {[%clk 0:00:23]}  Kb2 {[%clk 0:00:16]} 47. a4 {[%clk 0:00:23]}  Kxa2 {[%clk 0:00:17]} 48. a5 {[%clk 0:00:24]}  Kb3 {[%clk 0:00:17]} 49. a6 {[%clk 0:00:24]} 1-0


[Site "https://www.chess.com"]

[Event "Titled Tuesday Blitz March 07 Early 2023"]
[White "Leve, Nitai"]
[Black "Migot, Tangi"]
[WhiteFideId "2006898"]
[BlackFideId "662445"]
[WhiteElo "2144"]
[BlackElo "2528"]
[Result "0-1"]
[Round "06"]
[TimeControl "180+2"]
[Date "2023.03.07"]
[WhiteClock "0:00:01"]
[BlackClock "0:00:48"]

1. e4 {[%clk 0:02:54]}  c5 {[%clk 0:02:57]} 2. Nf3 {[%clk 0:02:53]}  d6 {[%clk 0:02:55]} 3. d4 {[%clk 0:02:53]}  cxd4 {[%clk 0:02:53]} 4. Qxd4 {[%clk 0:02:54]}  Bd7 {[%clk 0:02:52]} 5. c4 {[%clk 0:02:53]}  f5 {[%clk 0:02:50]} 6. exf5 {[%clk 0:02:50]}  Nc6 {[%clk 0:02:50]} 7. Qe3 {[%clk 0:02:49]}  Bxf5 {[%clk 0:02:49]} 8. Bd3 {[%clk 0:02:42]}  Nf6 {[%clk 0:02:49]} 9. Bxf5 {[%clk 0:02:42]}  Qa5+ {[%clk 0:02:49]} 10. Nc3 {[%clk 0:02:40]}  Qxf5 {[%clk 0:02:50]} 11. O-O {[%clk 0:02:40]}  e5 {[%clk 0:02:47]} 12. Nd5 {[%clk 0:02:19]}  Nxd5 {[%clk 0:02:46]} 13. cxd5 {[%clk 0:02:20]}  Nd8 {[%clk 0:02:45]} 14. Bd2 {[%clk 0:02:06]}  Be7 {[%clk 0:02:41]} 15. Rac1 {[%clk 0:02:05]}  O-O {[%clk 0:02:28]} 16. Rc7 {[%clk 0:02:04]}  Bf6 {[%clk 0:02:28]} 17. Bb4 {[%clk 0:01:57]}  e4 {[%clk 0:02:26]} 18. Bxd6 {[%clk 0:01:37]}  exf3 {[%clk 0:02:14]} 19. Bxf8 {[%clk 0:01:34]}  Kxf8 {[%clk 0:01:48]} 20. Re1 {[%clk 0:01:22]}  Nf7 {[%clk 0:01:47]} 21. Qe6 {[%clk 0:00:20]}  Qxe6 {[%clk 0:01:37]} 22. dxe6 {[%clk 0:00:21]}  Ne5 {[%clk 0:01:21]} 23. Rxb7 {[%clk 0:00:18]}  a5 {[%clk 0:01:18]} 24. b3 {[%clk 0:00:10]}  a4 {[%clk 0:01:10]} 25. bxa4 {[%clk 0:00:08]}  Rxa4 {[%clk 0:01:10]} 26. Rc1 {[%clk 0:00:08]}  Ra8 {[%clk 0:01:09]} 27. gxf3 {[%clk 0:00:08]}  Nxf3+ {[%clk 0:01:07]} 28. Kg2 {[%clk 0:00:08]}  Ng5 {[%clk 0:01:08]} 29. Rc6 {[%clk 0:00:07]}  Re8 {[%clk 0:01:07]} 30. Rbb6 {[%clk 0:00:05]}  Bd4 {[%clk 0:01:02]} 31. Ra6 {[%clk 0:00:04]}  Ke7 {[%clk 0:01:02]} 32. f4 {[%clk 0:00:03]}  Ne4 {[%clk 0:00:57]} 33. Rc7+ {[%clk 0:00:03]}  Kf6 {[%clk 0:00:56]} 34. Rf7+ {[%clk 0:00:02]}  Kg6 {[%clk 0:00:55]} 35. Ra4 {[%clk 0:00:01]}  Nd6 {[%clk 0:00:48]} 0-1


[Site "https://www.chess.com"]

[Event "Titled Tuesday Blitz March 07 Early 2023"]
[White "Valle Maytin, Luis Enrique"]
[Black "Zarnicki, Pablo"]
[WhiteFideId "3503666"]
[BlackFideId "100137"]
[WhiteElo "2225"]
[BlackElo "2468"]
[Result "0-1"]
[Round "06"]
[TimeControl "180+2"]
[Date "2023.03.07"]
[WhiteClock "0:00:02"]
[BlackClock "0:00:10"]

1. e4 {[%clk 0:02:58]}  c5 {[%clk 0:02:52]} 2. Nf3 {[%clk 0:02:58]}  d6 {[%clk 0:02:53]} 3. d4 {[%clk 0:02:52]}  cxd4 {[%clk 0:02:53]} 4. Nxd4 {[%clk 0:02:52]}  Nf6 {[%clk 0:02:53]} 5. Nc3 {[%clk 0:02:53]}  Nc6 {[%clk 0:02:52]} 6. Be2 {[%clk 0:02:51]}  g6 {[%clk 0:02:51]} 7. Be3 {[%clk 0:02:41]}  Bg7 {[%clk 0:02:50]} 8. O-O {[%clk 0:02:40]}  O-O {[%clk 0:02:50]} 9. h3 {[%clk 0:02:39]}  Nxd4 {[%clk 0:02:50]} 10. Bxd4 {[%clk 0:02:39]}  a6 {[%clk 0:02:51]} 11. a3 {[%clk 0:02:34]}  b5 {[%clk 0:02:49]} 12. Qd2 {[%clk 0:02:33]}  Bb7 {[%clk 0:02:49]} 13. Bd3 {[%clk 0:02:30]}  e5 {[%clk 0:02:47]} 14. Be3 {[%clk 0:02:29]}  d5 {[%clk 0:02:47]} 15. exd5 {[%clk 0:02:28]}  Nxd5 {[%clk 0:02:48]} 16. Nxd5 {[%clk 0:02:28]}  Qxd5 {[%clk 0:02:48]} 17. f3 {[%clk 0:02:24]}  f5 {[%clk 0:02:48]} 18. Rad1 {[%clk 0:02:18]}  Rad8 {[%clk 0:02:37]} 19. Qf2 {[%clk 0:01:49]}  Qc6 {[%clk 0:02:30]} 20. Bb6 {[%clk 0:01:38]}  Rd7 {[%clk 0:02:19]} 21. c3 {[%clk 0:01:27]}  e4 {[%clk 0:01:50]} 22. Bc2 {[%clk 0:01:25]}  exf3 {[%clk 0:01:45]} 23. Rxd7 {[%clk 0:01:16]}  Qxd7 {[%clk 0:01:38]} 24. Rd1 {[%clk 0:01:16]}  Qe6 {[%clk 0:01:21]} 25. Re1 {[%clk 0:01:04]}  Qa2 {[%clk 0:01:07]} 26. Bb1 {[%clk 0:00:26]}  Qc4 {[%clk 0:01:05]} 27. gxf3 {[%clk 0:00:25]}  Bf6 {[%clk 0:00:46]} 28. Qe3 {[%clk 0:00:14]}  Qh4 {[%clk 0:00:31]} 29. Kh2 {[%clk 0:00:08]}  f4 {[%clk 0:00:30]} 30. Qe6+ {[%clk 0:00:08]}  Kg7 {[%clk 0:00:30]} 31. Rg1 {[%clk 0:00:07]}  Bxf3 {[%clk 0:00:28]} 32. Qd7+ {[%clk 0:00:05]}  Rf7 {[%clk 0:00:28]} 33. Qe6 {[%clk 0:00:05]}  Qh5 {[%clk 0:00:18]} 34. Bd4 {[%clk 0:00:03]}  Bxd4 {[%clk 0:00:13]} 35. cxd4 {[%clk 0:00:04]}  Qh4 {[%clk 0:00:11]} 36. Bxg6 {[%clk 0:00:02]}  Qf2+ {[%clk 0:00:10]} 0-1


[Site "https://www.chess.com"]

[Event "Titled Tuesday Blitz March 07 Early 2023"]
[White "Vaglio Munoz, Jaime"]
[Black "Gontcharov, Vladislav"]
[WhiteFideId "6500145"]
[BlackFideId "4123492"]
[WhiteElo "2199"]
[BlackElo "2470"]
[Result "0-1"]
[Round "06"]
[TimeControl "180+2"]
[Date "2023.03.07"]
[WhiteClock "0:00:11"]
[BlackClock "0:00:59"]

1. e4 {[%clk 0:03:00]}  e6 {[%clk 0:02:58]} 2. d4 {[%clk 0:02:38]}  d5 {[%clk 0:02:54]} 3. Bd3 {[%clk 0:02:38]}  dxe4 {[%clk 0:02:53]} 4. Bxe4 {[%clk 0:02:38]}  Nf6 {[%clk 0:02:54]} 5. Bf3 {[%clk 0:02:38]}  c5 {[%clk 0:02:55]} 6. Ne2 {[%clk 0:02:38]}  Nc6 {[%clk 0:02:55]} 7. Be3 {[%clk 0:02:36]}  Nd5 {[%clk 0:02:49]} 8. O-O {[%clk 0:02:35]}  Nxe3 {[%clk 0:02:41]} 9. fxe3 {[%clk 0:02:35]}  Be7 {[%clk 0:02:33]} 10. Nd2 {[%clk 0:01:53]}  O-O {[%clk 0:02:31]} 11. c3 {[%clk 0:01:49]}  Qc7 {[%clk 0:02:21]} 12. Nf4 {[%clk 0:01:43]}  cxd4 {[%clk 0:02:18]} 13. Bxc6 {[%clk 0:01:32]}  dxc3 {[%clk 0:02:07]} 14. Be4 {[%clk 0:01:20]}  cxd2 {[%clk 0:02:07]} 15. Qxd2 {[%clk 0:01:21]}  Qb6 {[%clk 0:01:54]} 16. Rf3 {[%clk 0:01:12]}  f5 {[%clk 0:01:53]} 17. Bd3 {[%clk 0:01:00]}  Bf6 {[%clk 0:01:41]} 18. Bc4 {[%clk 0:00:58]}  Rd8 {[%clk 0:01:40]} 19. Qe2 {[%clk 0:00:57]}  g6 {[%clk 0:01:27]} 20. Bb3 {[%clk 0:00:51]}  Bd7 {[%clk 0:01:19]} 21. Rd1 {[%clk 0:00:51]}  Kg7 {[%clk 0:01:10]} 22. Rg3 {[%clk 0:00:38]}  Be5 {[%clk 0:01:08]} 23. Nh5+ {[%clk 0:00:23]}  Kh8 {[%clk 0:01:08]} 24. Rh3 {[%clk 0:00:24]}  Bb5 {[%clk 0:01:05]} 25. Rxd8+ {[%clk 0:00:20]}  Rxd8 {[%clk 0:01:03]} 26. Qf3 {[%clk 0:00:18]}  Bc6 {[%clk 0:00:59]} 27. Qe2 {[%clk 0:00:13]}  Bd5 {[%clk 0:01:00]} 28. Bxd5 {[%clk 0:00:11]}  Rxd5 {[%clk 0:00:59]} 29. Nf4 {[%clk 0:00:11]}  Bxf4 {[%clk 0:00:59]} 0-1


[Site "https://www.chess.com"]

[Event "Titled Tuesday Blitz March 07 Early 2023"]
[White "Estrada Nieto, Julian"]
[Black "Matveeva, Olga"]
[WhiteFideId "5101018"]
[BlackFideId "24107018"]
[WhiteElo "2176"]
[BlackElo "2056"]
[Result "1-0"]
[Round "06"]
[TimeControl "180+2"]
[Date "2023.03.07"]
[WhiteClock "0:00:18"]
[BlackClock "0:00:37"]

1. e4 {[%clk 0:03:00]}  e6 {[%clk 0:02:58]} 2. d4 {[%clk 0:03:00]}  d5 {[%clk 0:02:59]} 3. Nd2 {[%clk 0:03:01]}  c5 {[%clk 0:02:59]} 4. exd5 {[%clk 0:03:01]}  Qxd5 {[%clk 0:03:00]} 5. Ngf3 {[%clk 0:03:01]}  cxd4 {[%clk 0:03:00]} 6. Bc4 {[%clk 0:03:02]}  Qd6 {[%clk 0:03:00]} 7. O-O {[%clk 0:03:02]}  Nf6 {[%clk 0:03:00]} 8. Nb3 {[%clk 0:03:03]}  Nc6 {[%clk 0:03:01]} 9. Nbxd4 {[%clk 0:03:03]}  Nxd4 {[%clk 0:03:01]} 10. Nxd4 {[%clk 0:03:03]}  Be7 {[%clk 0:03:01]} 11. c3 {[%clk 0:02:54]}  O-O {[%clk 0:03:00]} 12. Qf3 {[%clk 0:02:48]}  Qc5 {[%clk 0:02:50]} 13. Bb3 {[%clk 0:02:41]}  a5 {[%clk 0:02:49]} 14. a4 {[%clk 0:02:07]}  Bd7 {[%clk 0:02:38]} 15. Be3 {[%clk 0:02:03]}  Qc7 {[%clk 0:02:31]} 16. Rfe1 {[%clk 0:01:53]}  Rfd8 {[%clk 0:02:17]} 17. Bf4 {[%clk 0:01:34]}  Qb6 {[%clk 0:02:13]} 18. Be5 {[%clk 0:01:23]}  Bc6 {[%clk 0:02:01]} 19. Qg3 {[%clk 0:01:05]}  Bd5 {[%clk 0:01:48]} 20. Bc7 {[%clk 0:01:00]}  Qc5 {[%clk 0:01:15]} 21. Bxd8 {[%clk 0:00:59]}  Rxd8 {[%clk 0:01:12]} 22. Bxd5 {[%clk 0:00:54]}  Nxd5 {[%clk 0:01:09]} 23. Rxe6 {[%clk 0:00:34]}  Bf6 {[%clk 0:00:51]} 24. Ree1 {[%clk 0:00:22]}  g6 {[%clk 0:00:42]} 25. Rad1 {[%clk 0:00:21]}  Bg7 {[%clk 0:00:41]} 26. Nb5 {[%clk 0:00:20]}  Rf8 {[%clk 0:00:37]} 27. Qg5 {[%clk 0:00:18]} 1-0


[Site "https://www.chess.com"]

[Event "Titled Tuesday Blitz March 07 Early 2023"]
[White "Rostomyan, Mikayel"]
[Black "Erzhanov, Arman"]
[WhiteFideId "13313754"]
[BlackFideId "4138821"]
[WhiteElo "2009"]
[BlackElo "2138"]
[Result "0-1"]
[Round "06"]
[TimeControl "180+2"]
[Date "2023.03.07"]
[WhiteClock "0:00:30"]
[BlackClock "0:00:47"]

1. e4 {[%clk 0:03:00]}  d6 {[%clk 0:02:58]} 2. d4 {[%clk 0:03:00]}  Nf6 {[%clk 0:02:58]} 3. Nc3 {[%clk 0:03:00]}  c6 {[%clk 0:02:58]} 4. Nf3 {[%clk 0:03:01]}  Bg4 {[%clk 0:02:57]} 5. Be2 {[%clk 0:03:01]}  e6 {[%clk 0:02:57]} 6. O-O {[%clk 0:03:01]}  d5 {[%clk 0:02:57]} 7. h3 {[%clk 0:02:52]}  Bh5 {[%clk 0:02:55]} 8. exd5 {[%clk 0:02:45]}  cxd5 {[%clk 0:02:54]} 9. Ne5 {[%clk 0:02:41]}  Bxe2 {[%clk 0:02:43]} 10. Nxe2 {[%clk 0:02:41]}  Nc6 {[%clk 0:02:40]} 11. Nxc6 {[%clk 0:02:41]}  bxc6 {[%clk 0:02:40]} 12. Nf4 {[%clk 0:02:41]}  Bd6 {[%clk 0:02:40]} 13. Nd3 {[%clk 0:02:42]}  O-O {[%clk 0:02:38]} 14. c3 {[%clk 0:02:40]}  a5 {[%clk 0:02:38]} 15. Bg5 {[%clk 0:02:38]}  h6 {[%clk 0:02:30]} 16. Bxf6 {[%clk 0:02:20]}  Qxf6 {[%clk 0:02:28]} 17. Qe2 {[%clk 0:02:17]}  a4 {[%clk 0:02:27]} 18. b4 {[%clk 0:02:15]}  axb3 {[%clk 0:02:25]} 19. axb3 {[%clk 0:02:15]}  Rfb8 {[%clk 0:02:17]} 20. b4 {[%clk 0:02:10]}  Qd8 {[%clk 0:02:15]} 21. Qb2 {[%clk 0:02:00]}  Rxa1 {[%clk 0:02:12]} 22. Rxa1 {[%clk 0:02:01]}  Ra8 {[%clk 0:02:13]} 23. Ra3 {[%clk 0:01:54]}  Qb8 {[%clk 0:02:10]} 24. Qa2 {[%clk 0:01:52]}  Rxa3 {[%clk 0:02:09]} 25. Qxa3 {[%clk 0:01:53]}  Qb5 {[%clk 0:02:09]} 26. Nc5 {[%clk 0:01:36]}  Qe2 {[%clk 0:01:54]} 27. g3 {[%clk 0:01:27]}  Kh7 {[%clk 0:01:55]} 28. Qc1 {[%clk 0:01:21]}  Qf3 {[%clk 0:01:40]} 29. Qb1+ {[%clk 0:01:11]}  g6 {[%clk 0:01:39]} 30. Qd3 {[%clk 0:01:11]}  Qxd3 {[%clk 0:01:25]} 31. Nxd3 {[%clk 0:01:12]}  Kg7 {[%clk 0:01:25]} 32. f4 {[%clk 0:01:08]}  g5 {[%clk 0:01:25]} 33. fxg5 {[%clk 0:01:03]}  hxg5 {[%clk 0:01:25]} 34. Kf2 {[%clk 0:01:02]}  f6 {[%clk 0:01:25]} 35. Kf3 {[%clk 0:01:02]}  e5 {[%clk 0:01:26]} 36. dxe5 {[%clk 0:01:00]}  fxe5 {[%clk 0:01:26]} 37. Kg4 {[%clk 0:00:57]}  Kg6 {[%clk 0:01:27]} 38. h4 {[%clk 0:00:56]}  gxh4 {[%clk 0:01:26]} 39. gxh4 {[%clk 0:00:56]}  e4 {[%clk 0:01:27]} 40. Nf4+ {[%clk 0:00:41]}  Kf6 {[%clk 0:01:17]} 41. b5 {[%clk 0:00:30]}  Bxf4 {[%clk 0:00:47]} 0-1


[Site "https://www.chess.com"]

[Event "Titled Tuesday Blitz March 07 Early 2023"]
[White "surrenderPLS"]
[Black "Melikhov, Evgeny V."]
[BlackFideId "4122046"]
[WhiteElo "2495"]
[BlackElo "2158"]
[Result "1-0"]
[Round "06"]
[TimeControl "180+2"]
[Date "2023.03.07"]
[WhiteClock "0:01:58"]
[BlackClock "0:01:51"]

1. e4 {[%clk 0:03:00]}  e5 {[%clk 0:02:59]} 2. Nf3 {[%clk 0:03:00]}  Nc6 {[%clk 0:02:59]} 3. Nc3 {[%clk 0:03:00]}  Nf6 {[%clk 0:02:58]} 4. Be2 {[%clk 0:02:59]}  d5 {[%clk 0:02:54]} 5. exd5 {[%clk 0:02:58]}  Nxd5 {[%clk 0:02:54]} 6. O-O {[%clk 0:02:59]}  Nxc3 {[%clk 0:02:52]} 7. bxc3 {[%clk 0:02:59]}  Bd6 {[%clk 0:02:48]} 8. d4 {[%clk 0:02:58]}  O-O {[%clk 0:02:45]} 9. Rb1 {[%clk 0:02:58]}  Rb8 {[%clk 0:02:29]} 10. Re1 {[%clk 0:02:52]}  e4 {[%clk 0:02:16]} 11. Ng5 {[%clk 0:02:29]}  f5 {[%clk 0:01:56]} 12. Bc4+ {[%clk 0:02:26]}  Kh8 {[%clk 0:01:56]} 13. Qh5 {[%clk 0:02:14]}  h6 {[%clk 0:01:51]} 14. Qg6 {[%clk 0:01:58]} 1-0


[Site "https://www.chess.com"]

[Event "Titled Tuesday Blitz March 07 Early 2023"]
[White "Szente Varga, Fruzsina"]
[Black "Khamdamova, Afruza"]
[WhiteFideId "712264"]
[BlackFideId "14210444"]
[WhiteElo "1994"]
[BlackElo "2210"]
[Result "0-1"]
[Round "06"]
[TimeControl "180+2"]
[Date "2023.03.07"]
[WhiteClock "0:00:06"]
[BlackClock "0:00:28"]

1. e4 {[%clk 0:03:00]}  c5 {[%clk 0:02:58]} 2. Nf3 {[%clk 0:03:00]}  e6 {[%clk 0:02:56]} 3. b3 {[%clk 0:03:00]}  Nc6 {[%clk 0:02:55]} 4. Bb2 {[%clk 0:03:01]}  Nf6 {[%clk 0:02:55]} 5. e5 {[%clk 0:03:00]}  Nd5 {[%clk 0:02:55]} 6. Bb5 {[%clk 0:03:01]}  Be7 {[%clk 0:02:55]} 7. O-O {[%clk 0:03:01]}  O-O {[%clk 0:02:55]} 8. d3 {[%clk 0:02:58]}  f6 {[%clk 0:02:46]} 9. Bxc6 {[%clk 0:02:34]}  bxc6 {[%clk 0:02:43]} 10. c4 {[%clk 0:02:33]}  Nf4 {[%clk 0:02:40]} 11. Qd2 {[%clk 0:02:30]}  Ng6 {[%clk 0:02:37]} 12. exf6 {[%clk 0:02:23]}  Bxf6 {[%clk 0:02:37]} 13. Bxf6 {[%clk 0:02:24]}  Qxf6 {[%clk 0:02:37]} 14. Nc3 {[%clk 0:02:24]}  d5 {[%clk 0:02:34]} 15. Na4 {[%clk 0:02:19]}  Nf4 {[%clk 0:02:32]} 16. Rfd1 {[%clk 0:01:52]}  Nxg2 {[%clk 0:02:31]} 17. Kxg2 {[%clk 0:01:44]}  Qxf3+ {[%clk 0:02:30]} 18. Kg1 {[%clk 0:01:31]}  Rf4 {[%clk 0:02:27]} 19. Qe3 {[%clk 0:01:26]}  Rg4+ {[%clk 0:02:24]} 20. Kf1 {[%clk 0:01:26]}  Qxe3 {[%clk 0:01:57]} 21. fxe3 {[%clk 0:01:27]}  Bd7 {[%clk 0:01:55]} 22. Nxc5 {[%clk 0:01:25]}  Rf8+ {[%clk 0:01:55]} 23. Ke1 {[%clk 0:01:14]}  Bc8 {[%clk 0:01:47]} 24. Kd2 {[%clk 0:01:08]}  Rf2+ {[%clk 0:01:46]} 25. Kc3 {[%clk 0:01:09]}  Rxh2 {[%clk 0:01:33]} 26. a4 {[%clk 0:01:04]}  Re2 {[%clk 0:01:31]} 27. e4 {[%clk 0:01:00]}  h5 {[%clk 0:01:21]} 28. Re1 {[%clk 0:00:56]}  Rxe1 {[%clk 0:01:19]} 29. Rxe1 {[%clk 0:00:57]}  dxe4 {[%clk 0:01:07]} 30. Nxe4 {[%clk 0:00:39]}  h4 {[%clk 0:00:52]} 31. Kd4 {[%clk 0:00:25]}  h3 {[%clk 0:00:49]} 32. Rh1 {[%clk 0:00:20]}  Rg2 {[%clk 0:00:42]} 33. Ke5 {[%clk 0:00:18]}  h2 {[%clk 0:00:40]} 34. d4 {[%clk 0:00:16]}  g5 {[%clk 0:00:34]} 35. Nd6 {[%clk 0:00:10]}  g4 {[%clk 0:00:30]} 36. Nxc8 {[%clk 0:00:06]}  g3 {[%clk 0:00:31]} 37. Ne7+ {[%clk 0:00:06]}  Kf7 {[%clk 0:00:30]} 38. Nxc6 {[%clk 0:00:05]}  Rg1 {[%clk 0:00:30]} 39. Nd8+ {[%clk 0:00:04]}  Ke7 {[%clk 0:00:26]} 40. Rxg1 {[%clk 0:00:05]}  hxg1=Q {[%clk 0:00:26]} 41. Nxe6 {[%clk 0:00:05]}  Qe3+ {[%clk 0:00:26]} 42. Kd5 {[%clk 0:00:06]}  Qxe6+ {[%clk 0:00:27]} 43. Kc5 {[%clk 0:00:06]}  Qd6+ {[%clk 0:00:27]} 44. Kb5 {[%clk 0:00:06]}  Qxd4 {[%clk 0:00:28]} 0-1


[Site "https://www.chess.com"]

[Event "Titled Tuesday Blitz March 07 Early 2023"]
[White "Omariev, Maksim"]
[Black "Zaichenko, Daria"]
[WhiteFideId "4193423"]
[BlackFideId "4197453"]
[WhiteElo "2467"]
[BlackElo "2039"]
[Result "1-0"]
[Round "06"]
[TimeControl "180+2"]
[Date "2023.03.07"]
[WhiteClock "0:00:19"]
[BlackClock "0:01:06"]

1. h4 {[%clk 0:03:00]}  d5 {[%clk 0:02:59]} 2. h5 {[%clk 0:03:01]}  e5 {[%clk 0:02:58]} 3. h6 {[%clk 0:03:01]}  Nxh6 {[%clk 0:02:56]} 4. d4 {[%clk 0:03:02]}  exd4 {[%clk 0:02:53]} 5. Bxh6 {[%clk 0:03:02]}  gxh6 {[%clk 0:02:53]} 6. Qxd4 {[%clk 0:03:02]}  Rg8 {[%clk 0:02:53]} 7. Nc3 {[%clk 0:03:01]}  Be6 {[%clk 0:02:52]} 8. O-O-O {[%clk 0:02:54]}  Bg7 {[%clk 0:02:48]} 9. Qd3 {[%clk 0:02:55]}  Bxc3 {[%clk 0:02:27]} 10. Qxc3 {[%clk 0:02:48]}  Nc6 {[%clk 0:02:22]} 11. Nf3 {[%clk 0:02:06]}  Qe7 {[%clk 0:02:20]} 12. e4 {[%clk 0:01:22]}  dxe4 {[%clk 0:02:08]} 13. Bb5 {[%clk 0:01:20]}  Bd7 {[%clk 0:01:54]} 14. Rxd7 {[%clk 0:01:17]}  Qxd7 {[%clk 0:01:39]} 15. Ne5 {[%clk 0:00:44]}  Qe6 {[%clk 0:01:28]} 16. Nxc6 {[%clk 0:00:37]}  Kf8 {[%clk 0:01:13]} 17. Nd4 {[%clk 0:00:32]}  Qe5 {[%clk 0:01:09]} 18. Bc4 {[%clk 0:00:21]}  c5 {[%clk 0:01:06]} 19. Ne6+ {[%clk 0:00:19]} 1-0


[Site "https://www.chess.com"]

[Event "Titled Tuesday Blitz March 07 Early 2023"]
[White "Bozorov, Makhsum"]
[Black "Mim, Akter"]
[WhiteFideId "14201330"]
[BlackFideId "10263950"]
[WhiteElo "2461"]
[BlackElo "2235"]
[Result "1-0"]
[Round "06"]
[TimeControl "180+2"]
[Date "2023.03.07"]
[WhiteClock "0:02:19"]
[BlackClock "0:02:24"]

1. e4 {[%clk 0:02:54]}  c5 {[%clk 0:02:59]} 2. Nf3 {[%clk 0:02:53]}  e6 {[%clk 0:02:58]} 3. c3 {[%clk 0:02:52]}  Nf6 {[%clk 0:02:56]} 4. e5 {[%clk 0:02:52]}  Nd5 {[%clk 0:02:56]} 5. g3 {[%clk 0:02:53]}  Nc6 {[%clk 0:02:54]} 6. Bg2 {[%clk 0:02:51]}  Qc7 {[%clk 0:02:49]} 7. d4 {[%clk 0:02:45]}  cxd4 {[%clk 0:02:47]} 8. cxd4 {[%clk 0:02:46]}  d6 {[%clk 0:02:47]} 9. exd6 {[%clk 0:02:45]}  Bxd6 {[%clk 0:02:44]} 10. O-O {[%clk 0:02:45]}  O-O {[%clk 0:02:44]} 11. Nbd2 {[%clk 0:02:40]}  Rd8 {[%clk 0:02:31]} 12. Ne4 {[%clk 0:02:40]}  Be7 {[%clk 0:02:29]} 13. Bg5 {[%clk 0:02:24]}  h6 {[%clk 0:02:23]} 14. Bxe7 {[%clk 0:02:23]}  Qxe7 {[%clk 0:02:24]} 15. Qb3 {[%clk 0:02:19]} 1-0


[Site "https://www.chess.com"]